[Event "Biel DQA Blitzn"]
[Site "Biel/Bienne, Switzerland"]
[Date "2022.07.17"]
[Round "3.2"]
[White "Keymer, Cecilia"]
[Black "Zhuang, Yongzhe"]
[Result "0-1"]
[TimeControl "3 min + 2 sec"]
[WhiteElo "1652"]
[BlackElo "1681"]

1. d4 {[%clk 00:03:02]} {[%emt 00:00:01]} d5 {[%clk 00:03:03]} {[%emt
00:00:01]} 2. c4 {[%clk 00:03:04]} dxc4 {[%clk 00:03:02]} {[%emt 00:00:03]} 3.
Nf3 {[%clk 00:03:05]} Nf6 {[%clk 00:03:02]} {[%emt 00:00:02]} 4. e3 {[%clk
00:03:06]} c5 {[%clk 00:03:03]} {[%emt 00:00:02]} 5. Bxc4 {[%clk 00:03:06]}
{[%emt 00:00:03]} cxd4 {[%clk 00:03:03]} {[%emt 00:00:01]} 6. Qxd4 {[%clk
00:03:05]} {[%emt 00:00:03]} Qxd4 {[%clk 00:02:57]} {[%emt 00:00:08]} 7. Nxd4
{[%clk 00:03:06]} {[%emt 00:00:01]} e6 {[%clk 00:02:57]} {[%emt 00:00:02]} 8.
O-O {[%clk 00:03:05]} {[%emt 00:00:03]} Be7 {[%clk 00:02:57]} {[%emt 00:00:02]}
9. Nc3 {[%clk 00:03:05]} {[%emt 00:00:02]} O-O {[%clk 00:02:57]} {[%emt
00:00:02]} 10. b3 {[%clk 00:03:03]} {[%emt 00:00:04]} a6 {[%clk 00:02:57]}
{[%emt 00:00:02]} 11. Bb2 {[%clk 00:03:01]} {[%emt 00:00:04]} b5 {[%clk
00:02:54]} {[%emt 00:00:05]} 12. Be2 {[%clk 00:03:00]} {[%emt 00:00:03]} Bb7
{[%clk 00:02:50]} {[%emt 00:00:05]} 13. Rac1 {[%clk 00:02:56]} {[%emt
00:00:06]} Bd6 {[%clk 00:02:26]} {[%emt 00:00:26]} 14. Bf3 {[%clk 00:02:50]}
{[%emt 00:00:09]} Bxf3 {[%clk 00:02:25]} {[%emt 00:00:03]} 15. Nxf3 {[%clk
00:02:51]} Nbd7 {[%clk 00:02:16]} {[%emt 00:00:12]} 16. Rfd1 {[%clk 00:02:47]}
{[%emt 00:00:04]} Bb4 {[%clk 00:02:05]} {[%emt 00:00:13]} 17. a3 {[%clk
00:02:42]} {[%emt 00:00:09]} Be7 {[%clk 00:02:03]} {[%emt 00:00:04]} 18. Ne2
{[%clk 00:02:29]} {[%emt 00:00:15]} Rac8 {[%clk 00:01:57]} {[%emt 00:00:08]} 19.
Ned4 {[%clk 00:02:29]} {[%emt 00:00:03]} Nc5 {[%clk 00:01:50]} {[%emt
00:00:09]} 20. b4 {[%clk 00:02:09]} {[%emt 00:00:22]} Na4 {[%clk 00:01:41]}
{[%emt 00:00:10]} 21. Ba1 {[%clk 00:02:06]} {[%emt 00:00:05]} Nd5 {[%clk
00:01:39]} {[%emt 00:00:04]} 22. Nc6 {[%clk 00:01:54]} {[%emt 00:00:14]} Bd8
{[%clk 00:00:56]} {[%emt 00:00:45]} 23. Nxd8 {[%clk 00:01:33]} {[%emt
00:00:24]} Rfxd8 {[%clk 00:00:56]} {[%emt 00:00:02]} 24. Nd4 {[%clk 00:01:22]}
{[%emt 00:00:13]} h6 {[%clk 00:00:50]} {[%emt 00:00:08]} 25. g3 {[%clk
00:01:13]} {[%emt 00:00:11]} Ndc3 {[%clk 00:00:46]} {[%emt 00:00:05]} 26. Bxc3
{[%clk 00:01:09]} {[%emt 00:00:06]} Nxc3 {[%clk 00:00:45]} {[%emt 00:00:02]} 27.
Re1 {[%clk 00:00:56]} {[%emt 00:00:15]} e5 {[%clk 00:00:41]} {[%emt 00:00:07]}
28. Nb3 {[%clk 00:00:56]} {[%emt 00:00:02]} Ne4 {[%clk 00:00:30]} {[%emt
00:00:13]} 29. Kg2 {[%clk 00:00:29]} {[%emt 00:00:29]} Rc4 {[%clk 00:00:23]}
{[%emt 00:00:08]} 30. Rxc4 {[%clk 00:00:16]} {[%emt 00:00:16]} bxc4 {[%clk
00:00:23]} {[%emt 00:00:01]} 31. Na5 {[%clk 00:00:17]} c3 {[%clk 00:00:22]}
{[%emt 00:00:04]} 32. Rc1 {[%clk 00:00:16]} {[%emt 00:00:03]} Rd2 {[%clk
00:00:22]} {[%emt 00:00:02]} 33. Rf1 {[%clk 00:00:05]} {[%emt 00:00:13]} c2
{[%emt 00:00:03]} 34. Nb3 Rd1 {[%clk 00:00:21]} {[%emt 00:00:02]} 0-1

[Event "Biel DQA Blitzn"]
[Site "Biel/Bienne, Switzerland"]
[Date "2022.07.17"]
[Round "3.3"]
[White "Sumarriva Paulin, Laura"]
[Black "Tamrazyan, Gohar"]
[Result "0-1"]
[TimeControl "3 min + 2 sec"]
[WhiteElo "1886"]
[BlackElo "1733"]

1. d4 {[%clk 00:03:02]} {[%emt 00:00:01]} d5 {[%clk 00:03:03]} {[%emt
00:00:01]} 2. c4 {[%clk 00:03:03]} e6 {[%clk 00:03:05]} 3. Nc3 {[%clk
00:03:04]} c5 {[%clk 00:03:06]} 4. e3 {[%clk 00:03:04]} {[%emt 00:00:02]} Nc6
{[%clk 00:03:07]} {[%emt 00:00:01]} 5. Nf3 {[%clk 00:03:04]} {[%emt 00:00:02]}
Nf6 {[%clk 00:03:08]} {[%emt 00:00:01]} 6. a3 {[%clk 00:03:05]} {[%emt
00:00:02]} Be7 {[%clk 00:03:07]} {[%emt 00:00:03]} 7. dxc5 {[%clk 00:03:05]}
{[%emt 00:00:02]} Bxc5 {[%clk 00:03:07]} {[%emt 00:00:03]} 8. b4 {[%clk
00:03:04]} {[%emt 00:00:02]} Be7 {[%clk 00:03:01]} {[%emt 00:00:07]} 9. Be2
{[%clk 00:03:03]} {[%emt 00:00:03]} O-O {[%clk 00:02:48]} {[%emt 00:00:15]} 10.
O-O {[%clk 00:03:02]} {[%emt 00:00:02]} a6 {[%clk 00:02:46]} {[%emt 00:00:05]}
11. cxd5 {[%clk 00:02:47]} {[%emt 00:00:17]} Nxd5 {[%clk 00:02:43]} {[%emt
00:00:04]} 12. Nxd5 {[%clk 00:02:44]} {[%emt 00:00:05]} exd5 {[%clk 00:02:24]}
{[%emt 00:00:22]} 13. Bb2 {[%clk 00:02:45]} {[%emt 00:00:02]} Be6 {[%clk
00:02:21]} {[%emt 00:00:05]} 14. Rc1 {[%clk 00:02:37]} {[%emt 00:00:09]} Bf6
{[%clk 00:02:21]} {[%emt 00:00:02]} 15. Qd2 {[%clk 00:02:25]} {[%emt 00:00:14]}
Qe7 {[%clk 00:02:07]} {[%emt 00:00:16]} 16. Rfd1 {[%clk 00:02:23]} {[%emt
00:00:03]} Rfd8 {[%clk 00:02:08]} {[%emt 00:00:01]} 17. Nd4 {[%clk 00:02:17]}
{[%emt 00:00:08]} Nxd4 {[%clk 00:02:03]} {[%emt 00:00:07]} 18. Bxd4 {[%clk
00:02:17]} {[%emt 00:00:02]} Rac8 {[%clk 00:01:58]} {[%emt 00:00:08]} 19. Bf3
{[%clk 00:02:16]} {[%emt 00:00:03]} h6 {[%emt 00:00:16]} 20. Bb6 {[%clk
00:02:08]} {[%emt 00:00:09]} Rxc1 {[%clk 00:01:39]} {[%emt 00:00:09]} 21. Rxc1
{[%clk 00:02:03]} {[%emt 00:00:06]} Rd7 {[%clk 00:01:31]} {[%emt 00:00:10]} 22.
h3 {[%clk 00:01:57]} {[%emt 00:00:08]} Qd6 {[%clk 00:01:16]} {[%emt 00:00:18]}
23. Bc5 {[%clk 00:01:51]} {[%emt 00:00:07]} Qe5 {[%clk 00:01:12]} {[%emt
00:00:06]} 24. Bd4 {[%clk 00:01:48]} {[%emt 00:00:05]} Qg5 {[%clk 00:01:09]}
{[%emt 00:00:05]} 25. Kh1 {[%clk 00:01:32]} {[%emt 00:00:18]} Rd8 {[%clk
00:01:05]} {[%emt 00:00:06]} 26. Bb6 {[%clk 00:01:29]} {[%emt 00:00:05]} Re8
{[%clk 00:00:56]} {[%emt 00:00:11]} 27. Qd3 {[%clk 00:01:03]} {[%emt 00:00:28]}
Qh4 {[%clk 00:00:46]} {[%emt 00:00:12]} 28. Qe2 {[%clk 00:00:44]} {[%emt
00:00:21]} Be5 {[%clk 00:00:43]} {[%emt 00:00:05]} 29. Bg4 {[%clk 00:00:11]}
{[%emt 00:00:34]} Bxg4 {[%clk 00:00:44]} {[%emt 00:00:02]} 30. Qxg4 {[%clk
00:00:12]} {[%emt 00:00:01]} Qxf2 {[%clk 00:00:36]} {[%emt 00:00:10]} 31. Qd7
{[%clk 00:00:11]} {[%emt 00:00:03]} Rf8 {[%clk 00:00:33]} {[%emt 00:00:05]} 32.
Bc5 {[%clk 00:00:11]} {[%emt 00:00:02]} Qd2 {[%clk 00:00:28]} {[%emt 00:00:07]}
33. Rg1 {[%clk 00:00:11]} {[%emt 00:00:01]} Rb8 {[%clk 00:00:26]} {[%emt
00:00:04]} 34. Qe7 {[%clk 00:00:09]} {[%emt 00:00:03]} Bg3 {[%clk 00:00:21]}
{[%emt 00:00:07]} 35. Bd6 {[%clk 00:00:08]} {[%emt 00:00:03]} Bxd6 {[%clk
00:00:21]} {[%emt 00:00:02]} 36. Qxd6 {[%clk 00:00:09]} {[%emt 00:00:01]} Rf8
{[%clk 00:00:22]} {[%emt 00:00:01]} 37. e4 {[%clk 00:00:09]} {[%emt 00:00:01]}
Qd3 {[%clk 00:00:18]} {[%emt 00:00:06]} 38. exd5 {[%clk 00:00:09]} {[%emt
00:00:02]} Qxa3 {[%clk 00:00:19]} {[%emt 00:00:02]} 39. Qc5 {[%clk 00:00:09]}
{[%emt 00:00:01]} Qd3 {[%clk 00:00:18]} {[%emt 00:00:02]} 40. d6 {[%clk
00:00:08]} {[%emt 00:00:03]} Rd8 {[%clk 00:00:20]} 41. Qc7 {[%clk 00:00:07]}
{[%emt 00:00:03]} Qxd6 {[%clk 00:00:20]} {[%emt 00:00:03]} 42. Qxb7 {[%clk
00:00:08]} Rb8 {[%clk 00:00:19]} {[%emt 00:00:03]} 43. Qa7 {[%clk 00:00:07]}
{[%emt 00:00:03]} Rxb4 {[%clk 00:00:18]} {[%emt 00:00:03]} 44. Re1 {[%clk
00:00:08]} Kh7 {[%clk 00:00:14]} {[%emt 00:00:07]} 45. Qe3 {[%clk 00:00:07]}
{[%emt 00:00:02]} Rb8 {[%clk 00:00:14]} {[%emt 00:00:02]} 46. Qd3+ {[%clk
00:00:08]} {[%emt 00:00:02]} Qxd3 {[%clk 00:00:15]} {[%emt 00:00:02]} 0-1

[Event "Biel DQA Blitzn"]
[Site "Biel/Bienne, Switzerland"]
[Date "2022.07.17"]
[Round "3.4"]
[White "Moracchini, Margaux"]
[Black "Ciarletta, Iris"]
[Result "0-1"]
[TimeControl "3 min + 2 sec"]
[WhiteElo "1825"]
[BlackElo "1481"]

1. e4 {[%clk 00:03:03]} c5 {[%clk 00:03:04]} 2. c3 {[%clk 00:03:02]} {[%emt
00:00:03]} Nf6 {[%clk 00:03:04]} {[%emt 00:00:02]} 3. e5 {[%clk 00:03:03]}
{[%emt 00:00:01]} Nd5 {[%clk 00:03:05]} {[%emt 00:00:01]} 4. Bc4 {[%clk
00:03:05]} Nb6 {[%clk 00:03:06]} 5. Bb3 {[%clk 00:03:06]} e6 {[%clk 00:03:00]}
{[%emt 00:00:08]} 6. Nf3 {[%clk 00:03:05]} {[%emt 00:00:03]} d5 {[%clk
00:03:00]} {[%emt 00:00:02]} 7. exd6 {[%clk 00:03:04]} {[%emt 00:00:03]} Bxd6
{[%clk 00:03:00]} {[%emt 00:00:02]} 8. d4 {[%clk 00:02:39]} {[%emt 00:00:27]}
cxd4 {[%clk 00:02:59]} {[%emt 00:00:03]} 9. Nxd4 {[%clk 00:02:37]} {[%emt
00:00:04]} Bd7 {[%clk 00:02:46]} {[%emt 00:00:16]} 10. O-O {[%clk 00:02:36]}
{[%emt 00:00:02]} Nc6 {[%clk 00:02:42]} {[%emt 00:00:07]} 11. Nb5 {[%clk
00:02:19]} {[%emt 00:00:19]} Bb8 {[%clk 00:02:25]} {[%emt 00:00:19]} 12. Nd6+
{[%clk 00:02:18]} {[%emt 00:00:03]} Bxd6 {[%clk 00:02:25]} {[%emt 00:00:02]} 13.
Qxd6 {[%clk 00:02:19]} Qb8 {[%clk 00:02:23]} {[%emt 00:00:04]} 14. Bf4 {[%clk
00:01:55]} {[%emt 00:00:26]} e5 {[%clk 00:02:13]} {[%emt 00:00:12]} 15. Qxb8+
{[%clk 00:01:48]} {[%emt 00:00:09]} Rxb8 {[%clk 00:02:13]} {[%emt 00:00:01]} 16.
Re1 {[%clk 00:01:49]} {[%emt 00:00:01]} f6 {[%clk 00:02:12]} {[%emt 00:00:03]}
17. Be3 {[%clk 00:01:46]} {[%emt 00:00:05]} Nc8 {[%clk 00:02:08]} {[%emt
00:00:06]} 18. Bc5 {[%clk 00:01:42]} {[%emt 00:00:06]} b6 {[%clk 00:02:06]}
{[%emt 00:00:04]} 19. Ba3 {[%clk 00:01:41]} {[%emt 00:00:03]} Na5 {[%clk
00:02:05]} {[%emt 00:00:03]} 20. Nd2 {[%clk 00:01:35]} {[%emt 00:00:08]} Nxb3
{[%clk 00:02:05]} {[%emt 00:00:02]} 21. Nxb3 {[%clk 00:01:36]} {[%emt
00:00:01]} Ne7 {[%clk 00:02:03]} {[%emt 00:00:04]} 22. Rad1 {[%clk 00:01:32]}
{[%emt 00:00:06]} Ba4 {[%clk 00:02:00]} {[%emt 00:00:05]} 23. Rd6 {[%clk
00:01:17]} {[%emt 00:00:17]} Nf5 {[%clk 00:01:51]} {[%emt 00:00:12]} 24. Rd2
{[%clk 00:01:13]} {[%emt 00:00:05]} Kf7 {[%clk 00:01:46]} {[%emt 00:00:07]} 25.
Nc1 {[%clk 00:01:07]} {[%emt 00:00:08]} Rhd8 {[%clk 00:01:46]} {[%emt
00:00:02]} 26. Rxd8 Rxd8 {[%clk 00:01:47]} 27. b3 {[%clk 00:01:03]} Bb5 {[%clk
00:01:47]} {[%emt 00:00:03]} 28. c4 {[%clk 00:01:04]} {[%emt 00:00:02]} Bc6
{[%clk 00:01:48]} {[%emt 00:00:01]} 29. Bb4 {[%clk 00:00:51]} {[%emt 00:00:14]}
Nd4 {[%clk 00:01:47]} {[%emt 00:00:03]} 30. Bc3 {[%clk 00:00:43]} {[%emt
00:00:10]} Nc2 {[%clk 00:01:39]} {[%emt 00:00:10]} 31. Rf1 {[%clk 00:00:44]}
Be4 {[%clk 00:01:39]} {[%emt 00:00:03]} 32. Ne2 {[%clk 00:00:42]} {[%emt
00:00:04]} Bd3 {[%clk 00:01:40]} {[%emt 00:00:02]} 33. Rd1 {[%clk 00:00:42]}
{[%emt 00:00:01]} Ke8 {[%clk 00:01:36]} {[%emt 00:00:07]} 34. Nc1 {[%clk
00:00:41]} {[%emt 00:00:02]} Bf5 {[%clk 00:01:30]} {[%emt 00:00:07]} 35. Rxd8+
{[%clk 00:00:42]} {[%emt 00:00:02]} Kxd8 {[%clk 00:01:31]} {[%emt 00:00:01]} 36.
h3 {[%clk 00:00:32]} {[%emt 00:00:11]} Na3 {[%clk 00:01:31]} {[%emt 00:00:02]}
37. Bb4 {[%clk 00:00:31]} {[%emt 00:00:04]} Nc2 {[%clk 00:01:29]} {[%emt
00:00:04]} 38. Bc3 {[%clk 00:00:33]} {[%emt 00:00:01]} Kd7 {[%clk 00:01:27]}
{[%emt 00:00:04]} 39. g4 {[%clk 00:00:31]} {[%emt 00:00:03]} Be4 {[%clk
00:01:26]} {[%emt 00:00:03]} 40. Kf1 {[%clk 00:00:22]} {[%emt 00:00:12]} Kc6
{[%clk 00:01:25]} {[%emt 00:00:04]} 41. Ke2 {[%clk 00:00:22]} {[%emt 00:00:01]}
Nd4+ {[%clk 00:01:24]} {[%emt 00:00:03]} 42. Bxd4 {[%clk 00:00:20]} {[%emt
00:00:04]} exd4 {[%clk 00:01:24]} {[%emt 00:00:01]} 43. f3 {[%clk 00:00:21]}
Bg6 {[%clk 00:01:21]} {[%emt 00:00:06]} 44. f4 {[%clk 00:00:13]} {[%emt
00:00:10]} Be4 {[%clk 00:01:21]} {[%emt 00:00:01]} 45. Nd3 {[%clk 00:00:11]}
{[%emt 00:00:05]} Bg2 {[%clk 00:01:18]} {[%emt 00:00:05]} 46. Nb4+ {[%clk
00:00:10]} {[%emt 00:00:04]} Kd6 {[%clk 00:01:14]} {[%emt 00:00:06]} 47. h4
{[%clk 00:00:07]} {[%emt 00:00:05]} Bh3 {[%clk 00:01:13]} {[%emt 00:00:02]} 48.
g5 {[%clk 00:00:08]} {[%emt 00:00:01]} Bf5 {[%clk 00:01:13]} {[%emt 00:00:03]}
49. Kf3 {[%clk 00:00:06]} {[%emt 00:00:04]} a5 {[%clk 00:01:12]} {[%emt
00:00:03]} 50. Na6 {[%clk 00:00:06]} {[%emt 00:00:02]} Bb1 {[%clk 00:01:12]}
{[%emt 00:00:02]} 51. a3 {[%clk 00:00:07]} {[%emt 00:00:02]} Ba2 {[%clk
00:01:11]} {[%emt 00:00:02]} 52. b4 {[%clk 00:00:07]} {[%emt 00:00:02]} Bxc4
{[%clk 00:01:12]} {[%emt 00:00:01]} 53. bxa5 {[%clk 00:00:08]} Bxa6 {[%clk
00:01:13]} 54. axb6 {[%clk 00:00:09]} Kd5 {[%clk 00:01:13]} {[%emt 00:00:02]}
55. gxf6 {[%clk 00:00:07]} {[%emt 00:00:04]} gxf6 {[%clk 00:01:14]} {[%emt
00:00:01]} 56. a4 {[%clk 00:00:08]} {[%emt 00:00:01]} f5 {[%clk 00:01:12]}
{[%emt 00:00:02]} 57. a5 {[%clk 00:00:07]} {[%emt 00:00:03]} h5 {[%clk
00:01:15]} 58. Kg3 {[%clk 00:00:05]} {[%emt 00:00:04]} Ke4 {[%clk 00:01:16]}
{[%emt 00:00:01]} 0-1

[ePGN "0.1;DGT LiveChess/2.2.5"]

[Event "Biel DQA Blitzn"]
[Site "Biel/Bienne, Switzerland"]
[Date "????.??.??"]
[Round "4.1"]
[White "Cornileau, Juliette"]
[Black "Ciarletta, Iris"]
[Result "1-0"]
[TimeControl "3 min + 2 sec"]
[WhiteElo "1653"]
[BlackElo "1481"]

1. d4 {[%clk 00:03:02]} {[%emt 00:00:01]} d5 {[%clk 00:03:04]} 2. c4 {[%clk
00:03:03]} e6 {[%clk 00:03:02]} {[%emt 00:00:03]} 3. Nc3 {[%clk 00:03:04]}
{[%emt 00:00:01]} Nf6 {[%clk 00:03:03]} {[%emt 00:00:01]} 4. cxd5 {[%clk
00:03:05]} {[%emt 00:00:01]} exd5 {[%clk 00:03:04]} {[%emt 00:00:01]} 5. Bg5
{[%clk 00:03:06]} Be7 {[%clk 00:03:04]} {[%emt 00:00:02]} 6. e3 {[%clk
00:03:06]} {[%emt 00:00:02]} c6 {[%clk 00:03:04]} {[%emt 00:00:02]} 7. Bd3
{[%clk 00:03:07]} {[%emt 00:00:01]} Be6 {[%clk 00:03:01]} {[%emt 00:00:06]} 8.
Qc2 {[%clk 00:03:04]} {[%emt 00:00:04]} h6 {[%clk 00:03:01]} {[%emt 00:00:02]}
9. Bh4 {[%clk 00:03:00]} {[%emt 00:00:06]} Nbd7 {[%clk 00:03:00]} {[%emt
00:00:02]} 10. Nge2 {[%clk 00:03:01]} {[%emt 00:00:01]} Ng4 {[%clk 00:02:39]}
{[%emt 00:00:23]} 11. Bxe7 {[%clk 00:02:55]} {[%emt 00:00:08]} Qxe7 {[%clk
00:02:39]} {[%emt 00:00:02]} 12. h3 {[%clk 00:02:41]} {[%emt 00:00:16]} Ngf6
{[%clk 00:02:36]} {[%emt 00:00:05]} 13. Nf4 {[%clk 00:02:33]} {[%emt 00:00:10]}
Nb6 {[%clk 00:02:33]} {[%emt 00:00:05]} 14. O-O {[%clk 00:02:11]} {[%emt
00:00:24]} Nc8 {[%clk 00:02:33]} {[%emt 00:00:02]} 15. e4 {[%clk 00:01:59]}
{[%emt 00:00:13]} dxe4 {[%clk 00:02:32]} {[%emt 00:00:03]} 16. Nxe4 {[%clk
00:01:59]} {[%emt 00:00:01]} O-O {[%clk 00:02:24]} {[%emt 00:00:10]} 17. Nc5
{[%clk 00:01:43]} {[%emt 00:00:18]} Bd5 {[%clk 00:02:19]} {[%emt 00:00:08]} 18.
Nxd5 {[%clk 00:01:33]} {[%emt 00:00:12]} Nxd5 {[%clk 00:02:17]} {[%emt
00:00:03]} 19. Rae1 {[%clk 00:01:19]} {[%emt 00:00:16]} Qg5 {[%clk 00:02:02]}
{[%emt 00:00:17]} 20. Ne4 {[%clk 00:01:00]} {[%emt 00:00:21]} Qd8 {[%clk
00:02:02]} {[%emt 00:00:03]} 21. Nc5 {[%clk 00:01:00]} {[%emt 00:00:02]} Nd6
{[%clk 00:02:02]} {[%emt 00:00:02]} 22. b3 {[%clk 00:00:51]} {[%emt 00:00:11]}
Qf6 {[%clk 00:01:54]} {[%emt 00:00:11]} 23. Nd7 {[%clk 00:00:48]} {[%emt
00:00:05]} Qxd4 {[%clk 00:01:48]} {[%emt 00:00:08]} 24. Nxf8 {[%clk 00:00:48]}
{[%emt 00:00:03]} Rxf8 {[%clk 00:01:49]} 25. Be4 {[%clk 00:00:28]} {[%emt
00:00:22]} Nxe4 {[%clk 00:01:43]} {[%emt 00:00:08]} 26. Rxe4 {[%clk 00:00:21]}
{[%emt 00:00:09]} Qb6 {[%clk 00:01:42]} {[%emt 00:00:02]} 27. Rfe1 {[%clk
00:00:22]} {[%emt 00:00:01]} Nf6 {[%clk 00:01:40]} {[%emt 00:00:04]} 28. Re7
{[%clk 00:00:21]} {[%emt 00:00:02]} Qb4 {[%clk 00:01:39]} {[%emt 00:00:04]} 29.
Qc4 {[%clk 00:00:12]} {[%emt 00:00:11]} Qa5 {[%clk 00:01:29]} {[%emt 00:00:11]}
30. Qc2 {[%clk 00:00:13]} {[%emt 00:00:02]} Qb6 {[%clk 00:01:29]} {[%emt
00:00:03]} 31. Qe2 {[%clk 00:00:12]} {[%emt 00:00:02]} Nd5 {[%clk 00:01:29]}
{[%emt 00:00:02]} 32. Rd7 {[%clk 00:00:13]} {[%emt 00:00:02]} Nf6 {[%clk
00:01:22]} {[%emt 00:00:09]} 33. Re7 {[%clk 00:00:13]} {[%emt 00:00:01]} Qb4
{[%clk 00:01:19]} {[%emt 00:00:05]} 34. Qc4 {[%clk 00:00:14]} {[%emt 00:00:02]}
Qb6 {[%clk 00:01:18]} {[%emt 00:00:03]} 35. a4 {[%clk 00:00:14]} {[%emt
00:00:02]} Nd5 {[%clk 00:01:18]} {[%emt 00:00:02]} 36. R7e5 {[%clk 00:00:14]}
{[%emt 00:00:02]} Qd8 {[%clk 00:01:15]} {[%emt 00:00:05]} 37. Qe4 {[%clk
00:00:14]} {[%emt 00:00:02]} Nf6 {[%clk 00:01:14]} {[%emt 00:00:03]} 38. Qc4
{[%clk 00:00:14]} {[%emt 00:00:01]} Nd5 {[%clk 00:01:12]} {[%emt 00:00:04]} 39.
Qe2 {[%clk 00:00:14]} {[%emt 00:00:03]} Qb6 {[%clk 00:01:12]} {[%emt 00:00:02]}
40. Re8 {[%clk 00:00:11]} {[%emt 00:00:04]} Rxe8 {[%clk 00:01:09]} {[%emt
00:00:05]} 41. Qxe8+ {[%clk 00:00:12]} {[%emt 00:00:01]} Kh7 {[%clk 00:01:11]}
42. Qxf7 {[%clk 00:00:12]} {[%emt 00:00:01]} Qxb3 {[%clk 00:01:08]} {[%emt
00:00:05]} 43. Qf5+ {[%clk 00:00:13]} {[%emt 00:00:01]} 1-0

[Event "Biel DQA Blitzn"]
[Site "Biel/Bienne, Switzerland"]
[Date "????.??.??"]
[Round "4.2"]
[White "Tamrazyan, Gohar"]
[Black "Moracchini, Margaux"]
[Result "0-1"]
[TimeControl "3 min + 2 sec"]
[WhiteElo "1733"]
[BlackElo "1825"]

1. d4 {[%clk 00:03:02]} {[%emt 00:00:01]} Nf6 {[%clk 00:03:03]} {[%emt
00:00:01]} 2. Nc3 {[%clk 00:03:03]} d5 {[%clk 00:03:01]} {[%emt 00:00:05]} 3.
Bf4 {[%clk 00:03:04]} {[%emt 00:00:01]} e6 {[%clk 00:02:40]} {[%emt 00:00:22]}
4. e3 {[%clk 00:03:05]} {[%emt 00:00:01]} Bd6 {[%clk 00:02:24]} {[%emt
00:00:18]} 5. Bxd6 {[%clk 00:02:35]} {[%emt 00:00:32]} Qxd6 {[%clk 00:02:25]}
{[%emt 00:00:02]} 6. g4 {[%clk 00:02:29]} {[%emt 00:00:08]} h6 {[%clk
00:02:16]} {[%emt 00:00:10]} 7. h4 {[%clk 00:02:31]} Ne4 {[%clk 00:02:10]}
{[%emt 00:00:08]} 8. Nxe4 {[%clk 00:02:01]} {[%emt 00:00:32]} dxe4 {[%clk
00:02:12]} 9. Bg2 {[%clk 00:01:56]} {[%emt 00:00:07]} Qb4+ {[%clk 00:01:46]}
{[%emt 00:00:28]} 10. Kf1 {[%clk 00:01:28]} {[%emt 00:00:30]} Qxb2 {[%clk
00:01:41]} {[%emt 00:00:06]} 11. Bxe4 {[%clk 00:01:28]} {[%emt 00:00:02]} Qb5+
{[%clk 00:01:43]} {[%emt 00:00:01]} 12. Ne2 {[%clk 00:01:10]} {[%emt 00:00:20]}
O-O {[%clk 00:01:22]} {[%emt 00:00:23]} 13. Bd3 {[%clk 00:01:02]} {[%emt
00:00:10]} Qc6 {[%clk 00:01:18]} {[%emt 00:00:06]} 14. Ng3 {[%clk 00:01:02]}
{[%emt 00:00:02]} Nd7 {[%clk 00:01:05]} {[%emt 00:00:15]} 15. Be4 {[%clk
00:01:00]} {[%emt 00:00:04]} Qd6 {[%clk 00:01:00]} {[%emt 00:00:05]} 16. Qf3
{[%clk 00:00:55]} {[%emt 00:00:07]} Nf6 {[%clk 00:00:52]} {[%emt 00:00:10]} 17.
g5 {[%clk 00:00:48]} {[%emt 00:00:09]} Nxe4 {[%clk 00:00:49]} {[%emt 00:00:05]}
18. Nxe4 {[%clk 00:00:47]} {[%emt 00:00:04]} Qa6+ {[%clk 00:00:51]} 19. Qe2
{[%clk 00:00:46]} {[%emt 00:00:03]} Qxe2+ {[%clk 00:00:50]} {[%emt 00:00:03]}
20. Kxe2 {[%clk 00:00:47]} hxg5 {[%clk 00:00:45]} {[%emt 00:00:08]} 21. hxg5
{[%clk 00:00:47]} {[%emt 00:00:02]} b6 {[%clk 00:00:44]} {[%emt 00:00:02]} 22.
Ng3 {[%clk 00:00:44]} {[%emt 00:00:06]} Ba6+ {[%emt 00:00:02]} 23. Kd2 {[%clk
00:00:44]} {[%emt 00:00:01]} Rad8 {[%clk 00:00:44]} {[%emt 00:00:03]} 24. Kc3
{[%clk 00:00:43]} {[%emt 00:00:03]} Rd5 {[%clk 00:00:40]} {[%emt 00:00:06]} 25.
e4 {[%clk 00:00:41]} {[%emt 00:00:04]} Rxg5 {[%clk 00:00:41]} {[%emt 00:00:01]}
26. Rh3 {[%clk 00:00:34]} {[%emt 00:00:08]} c5 {[%clk 00:00:42]} {[%emt
00:00:02]} 27. f4 {[%clk 00:00:32]} {[%emt 00:00:05]} cxd4+ {[%clk 00:00:42]}
{[%emt 00:00:02]} 28. Kxd4 {[%clk 00:00:32]} {[%emt 00:00:02]} Rd8+ {[%clk
00:00:43]} 29. Ke3 {[%clk 00:00:32]} {[%emt 00:00:03]} Rc5 {[%clk 00:00:44]} 30.
Rh2 {[%clk 00:00:24]} {[%emt 00:00:10]} Rc3+ {[%clk 00:00:44]} {[%emt
00:00:01]} 31. Kf2 {[%clk 00:00:23]} {[%emt 00:00:03]} Rd2+ {[%clk 00:00:44]}
{[%emt 00:00:02]} 32. Kg1 {[%clk 00:00:19]} {[%emt 00:00:06]} Rxg3+ {[%clk
00:00:45]} {[%emt 00:00:01]} 33. Kh1 {[%clk 00:00:21]} Rxh2+ {[%clk 00:00:44]}
{[%emt 00:00:03]} 34. Kxh2 {[%clk 00:00:22]} {[%emt 00:00:01]} Re3 {[%clk
00:00:44]} {[%emt 00:00:02]} 35. e5 {[%clk 00:00:22]} {[%emt 00:00:02]} Re2+
{[%clk 00:00:44]} {[%emt 00:00:01]} 36. Kg3 {[%clk 00:00:22]} {[%emt 00:00:02]}
Rxc2 {[%clk 00:00:45]} {[%emt 00:00:01]} 37. a3 {[%clk 00:00:21]} {[%emt
00:00:04]} Re2 {[%clk 00:00:43]} {[%emt 00:00:02]} 38. Kf3 {[%clk 00:00:22]}
{[%emt 00:00:03]} Rb2 {[%clk 00:00:42]} {[%emt 00:00:03]} 39. a4 {[%clk
00:00:21]} {[%emt 00:00:04]} Bb7+ {[%clk 00:00:43]} {[%emt 00:00:01]} 40. Ke3
{[%clk 00:00:21]} {[%emt 00:00:02]} Rb3+ {[%clk 00:00:43]} {[%emt 00:00:02]} 41.
Kd4 {[%clk 00:00:21]} {[%emt 00:00:02]} Rb4+ {[%clk 00:00:43]} {[%emt
00:00:02]} 42. Ke3 {[%clk 00:00:23]} Re4+ {[%clk 00:00:44]} 43. Kd3 {[%clk
00:00:22]} {[%emt 00:00:04]} Rxf4 {[%clk 00:00:43]} {[%emt 00:00:03]} 44. a5
{[%clk 00:00:23]} {[%emt 00:00:02]} b5 {[%clk 00:00:36]} {[%emt 00:00:09]} 45.
Rc1 {[%clk 00:00:23]} {[%emt 00:00:02]} Rc4 {[%clk 00:00:31]} {[%emt 00:00:07]}
46. Rxc4 {[%clk 00:00:22]} {[%emt 00:00:04]} bxc4+ {[%clk 00:00:32]} 47. Kxc4
{[%clk 00:00:23]} {[%emt 00:00:01]} g5 {[%clk 00:00:30]} {[%emt 00:00:04]} 48.
Kc5 {[%clk 00:00:19]} {[%emt 00:00:07]} Ba6 {[%clk 00:00:31]} 49. Kd4 {[%clk
00:00:16]} {[%emt 00:00:05]} Kg7 {[%clk 00:00:30]} {[%emt 00:00:03]} 50. Ke4
{[%clk 00:00:17]} Kg6 {[%clk 00:00:31]} 51. Kf3 {[%clk 00:00:19]} Kf5 {[%emt
00:00:02]} 0-1